bitfinex/quotes_BTCUSD_20240827
["timestamp","ask_amount","ask_price","bid_price","bid_amount"]
[1724774989289,0.323773,61772.0,61771.0,0.00019486]
[1724774989502,0.5150595,61774.0,61765.0,0.000821]
[1724774989503,0.002,61770.0,61765.0,0.000821]
[1724774989721,0.161889,61771.0,61765.0,0.000821]
[1724774989934,0.26196015,61771.0,61765.0,0.000821]
[1724774990371,0.10007115,61771.0,61765.0,0.000821]
[1724774990618,0.1912985,61774.0,61765.0,0.000821]
[1724774990619,0.2002985,61774.0,61766.0,0.161899]
[1724774990839,0.009,61774.0,61765.0,0.162724]
[1724774991058,0.422039,61779.0,61765.0,0.000821]
[1724774991059,0.002,61770.0,61765.0,0.000821]
[1724774991496,0.006,61771.0,61765.0,0.000821]
[1724774991925,0.161877,61776.0,61765.0,0.000821]
[1724774992169,0.005,61770.0,61769.0,0.000822]
[1724774993071,0.005,61770.0,61769.0,0.091122]
[1724774993691,0.007,61770.0,61769.0,0.091122]
[1724774994343,0.002,61770.0,61769.0,0.091122]
[1724774994765,0.002,61770.0,61769.0,0.253015]
[1724774994935,0.002,61770.0,61769.0,0.182722]
[1724774995344,0.007,61770.0,61769.0,0.182722]
[1724774995726,0.007,61770.0,61769.0,0.99542667]
[1724774995954,0.007,61770.0,61769.0,1.63914457]
[1724774996174,0.007,61770.0,61769.0,1.47917912]
[1724774997047,0.007,61770.0,61769.0,1.47594145]
[1724774997511,0.007,61770.0,61769.0,1.50394145]
[1724774997707,0.007,61770.0,61769.0,1.52141282]
[1724774998489,0.002,61770.0,61769.0,1.52141282]
[1724774998696,0.003,61770.0,61769.0,1.69543031]
[1724774999507,0.001,61770.0,61769.0,1.69543031]
[1724774999921,0.002,61770.0,61769.0,1.69743031]
[1724775000147,0.00090421,61781.0,61780.0,1.138051]
[1724775000342,0.00090421,61781.0,61780.0,2.0444056]
[1724775000560,0.00090421,61781.0,61780.0,2.3681346]
[1724775001040,0.00090421,61781.0,61780.0,2.35066323]
[1724775001266,0.00090421,61781.0,61780.0,2.36813056]
[1724775001485,0.00590421,61781.0,61780.0,2.36813056]
[1724775001949,0.00190421,61781.0,61780.0,2.36813056]
[1724775002180,0.00290421,61781.0,61780.0,2.36913056]
[1724775002875,0.00190421,61781.0,61780.0,2.36913056]
[1724775003137,0.00290421,61781.0,61780.0,2.38213056]
[1724775003592,0.00090421,61781.0,61780.0,2.36813056]
[1724775003828,0.00090421,61781.0,61780.0,2.39460655]
[1724775004047,0.00190421,61781.0,61780.0,2.40360655]
[1724775005947,0.0017094,61781.0,61780.0,2.40263944]
[1724775007495,0.0017094,61781.0,61780.0,2.4026385]
[1724775007657,0.0017094,61781.0,61780.0,2.42010489]
[1724775007839,0.0017094,61781.0,61780.0,2.7263675]
[1724775011086,0.0874,61806.0,61798.0,1.132722]
[1724775011424,0.0874,61806.0,61798.0,1.29268745]
[1724775012026,0.0874,61806.0,61798.0,1.28768745]
[1724775012731,0.4697,61810.0,61798.0,1.28768745]
[1724775012732,0.00190421,61799.0,61798.0,1.62435534]
[1724775012941,0.00190421,61799.0,61798.0,1.86215534]
[1724775013147,0.11445019,61818.0,61817.0,0.808837]
[1724775013346,0.0891,61818.0,61817.0,0.808837]
[1724775013787,0.00180514,61826.0,61825.0,0.323493]
[1724775014001,0.00180514,61826.0,61825.0,0.485239]
[1724775014206,0.09794732,61827.0,61822.0,0.30901268]
[1724775014207,0.09794732,61827.0,61826.0,0.485232]
[1724775014407,0.00884732,61827.0,61826.0,0.80872]
[1724775016299,0.00884732,61827.0,61826.0,0.96868545]
[1724775016740,0.00884732,61827.0,61826.0,0.98168545]
[1724775016962,0.00884732,61827.0,61826.0,0.013]
[1724775017170,0.00884732,61827.0,61826.0,0.024]
[1724775017613,0.0004,61839.0,61837.0,0.161714]
[1724775017829,0.0004,61839.0,61838.0,0.95411513]
[1724775018039,0.0004,61839.0,61835.0,0.323438]
[1724775018274,0.0004,61839.0,61836.0,0.32168145]
[1724775018488,0.0004,61839.0,61832.0,0.30901268]
[1724775018489,0.0004,61839.0,61832.0,0.63246868]
[1724775018695,0.0004,61839.0,61833.0,0.07547687]
[1724775018902,0.1169,61838.0,61832.0,0.30901268]
[1724775019116,0.0004,61839.0,61832.0,0.30901268]
[1724775019264,0.0014,61839.0,61834.0,0.161722]
[1724775019479,0.0014,61839.0,61832.0,0.30901268]
[1724775019480,0.0014,61839.0,61837.0,0.001]
[1724775019690,0.0014,61839.0,61836.0,0.161716]
[1724775019691,0.0004,61839.0,61836.0,0.161716]
[1724775019894,0.0004,61839.0,61834.0,0.323445]
[1724775020299,0.0004,61839.0,61836.0,0.161717]
[1724775020505,0.0004,61839.0,61834.0,0.323445]
[1724775020906,0.0004,61839.0,61837.0,0.009]
[1724775021140,0.0004,61839.0,61836.0,0.006]
[1724775021617,0.0906,61838.0,61836.0,0.006]
[1724775022334,0.0906,61838.0,61836.0,0.167717]
[1724775022553,0.0906,61838.0,61836.0,0.2501795]
[1724775022758,0.0906,61838.0,61836.0,0.161717]
[1724775022953,0.0906,61838.0,61836.0,0.168717]
[1724775023218,0.0906,61838.0,61834.0,0.329446]
[1724775023429,0.0004,61839.0,61838.0,0.485137]
[1724775023653,0.0004,61839.0,61838.0,0.96852745]
[1724775024715,0.0004,61839.0,61838.0,0.98154813]
[1724775025353,0.0004,61839.0,61838.0,0.96852745]
[1724775025566,0.0004,61839.0,61838.0,0.97452745]
[1724775026013,0.0004,61839.0,61838.0,1.08233255]
[1724775026264,0.0014,61839.0,61838.0,1.09233255]
[1724775026480,0.0014,61839.0,61838.0,1.10433255]
[1724775026714,0.0004,61839.0,61838.0,1.09433255]
[1724775026947,0.0014,61839.0,61838.0,1.10833255]
[1724775027429,0.0014,61839.0,61838.0,0.99452745]
[1724775029295,0.00230421,61839.0,61838.0,0.99452745]
[1724775031026,0.00230421,61839.0,61838.0,1.31795245]
[1724775031237,0.00230421,61839.0,61838.0,0.99452745]
[1724775031691,0.00230421,61839.0,61838.0,1.34095245]
[1724775031919,0.00230421,61839.0,61838.0,1.7055179]
[1724775032362,0.00230421,61839.0,61838.0,1.5882179]
[1724775032577,0.00230421,61839.0,61838.0,1.10482745]
[1724775033059,0.00230421,61839.0,61838.0,0.511137]
[1724775033479,0.00230421,61839.0,61838.0,0.187712]
[1724775033685,0.00230421,61839.0,61838.0,0.511137]
[1724775034320,0.00230421,61839.0,61838.0,0.834562]
[1724775035837,0.00230421,61839.0,61838.0,0.99452745]
[1724775036060,0.00230421,61839.0,61838.0,1.59971867]
[1724775038497,0.00230421,61839.0,61838.0,1.61717252]
[1724775041458,0.00230421,61839.0,61838.0,1.59971867]
[1724775041711,0.00230421,61839.0,61838.0,1.6171719]
[1724775044905,0.00230421,61839.0,61838.0,1.61716207]
[1724775046246,0.00230421,61839.0,61838.0,1.61715335]
[1724775049278,0.00230421,61839.0,61838.0,1.62928782]
[1724775049539,0.00230421,61839.0,61838.0,1.61715335]
[1724775049759,0.00230421,61839.0,61838.0,1.629289]
[1724775049909,0.00230421,61839.0,61838.0,1.61715343]
[1724775051370,0.00230421,61839.0,61838.0,1.59415343]
[1724775051598,0.00230421,61839.0,61838.0,1.10532745]
[1724775051800,0.00230421,61839.0,61838.0,1.12276864]
[1724775052042,0.00230421,61839.0,61838.0,1.44619364]
[1724775052221,0.00230421,61839.0,61838.0,1.46919364]
[1724775052408,0.00230421,61839.0,61838.0,1.62915909]
[1724775053396,0.00230421,61839.0,61838.0,1.01196864]
[1724775054823,0.00230421,61839.0,61838.0,0.99452745]
[1724775055022,0.00230421,61839.0,61838.0,1.01197658]
[1724775055423,0.00230421,61839.0,61838.0,0.52858613]
[1724775057126,0.00230421,61839.0,61838.0,0.85201113]
[1724775058724,0.00230421,61839.0,61838.0,0.67831844]
[1724775058932,0.00230421,61839.0,61838.0,0.83828389]
[1724775059122,0.00230421,61839.0,61838.0,1.27670889]
[1724775060355,0.00230421,61839.0,61838.0,1.11674344]
[1724775061435,0.00230421,61839.0,61838.0,0.96701224]
[1724775063336,0.00230421,61839.0,61838.0,0.52858724]
[1724775063599,0.07448683,61839.0,61838.0,0.52858724]
[1724775064119,0.07448683,61839.0,61838.0,0.511137]
[1724775064340,0.00230421,61839.0,61838.0,0.511137]
[1724775064578,0.00230421,61839.0,61838.0,0.52858597]
[1724775065056,0.00230421,61839.0,61838.0,0.97082362]
[1724775065299,0.00230421,61839.0,61838.0,0.85201097]
[1724775065529,0.07510009,61839.0,61838.0,0.52858597]
[1724775065746,0.05083557,61839.0,61838.0,0.85201097]
[1724775066220,0.05083557,61839.0,61838.0,0.97082272]
[1724775067617,0.05083557,61839.0,61838.0,1.1133392]
[1724775067866,0.05083557,61839.0,61838.0,1.13078833]
[1724775068109,0.05083557,61839.0,61838.0,1.24328973]
[1724775068568,0.00230421,61839.0,61838.0,1.75664762]
[1724775068837,0.00904201,61843.0,61842.0,0.16573489]
[1724775069084,0.00904201,61843.0,61842.0,1.71313404]
[1724775069561,0.00904201,61843.0,61842.0,1.7401382]
[1724775070250,0.00904201,61843.0,61842.0,1.74013562]
[1724775070980,0.00904201,61843.0,61842.0,1.74813562]
[1724775071207,0.00904201,61843.0,61842.0,1.76013562]
[1724775071460,0.00904201,61843.0,61842.0,1.74092517]
[1724775071693,0.00904201,61843.0,61842.0,2.05218566]
[1724775071898,0.00904201,61843.0,61842.0,2.07950607]
[1724775074541,0.00904201,61843.0,61842.0,2.40291007]
[1724775074776,0.00904201,61843.0,61842.0,2.07950607]
[1724775075221,0.00904201,61843.0,61842.0,2.40291007]
[1724775076106,0.00904201,61843.0,61842.0,2.07950607]
[1724775076759,0.00904201,61843.0,61842.0,2.40291007]
[1724775076974,0.00904201,61843.0,61842.0,2.40289437]
[1724775077184,0.00904201,61843.0,61842.0,2.07949037]
[1724775077448,0.00904201,61844.0,61843.0,1.44090868]
[1724775077661,0.00904201,61844.0,61843.0,1.88383958]
[1724775077889,0.00904201,61844.0,61843.0,2.23151746]
[1724775078127,0.00904201,61844.0,61843.0,2.29113111]
[1724775078335,0.00904201,61844.0,61843.0,2.58721637]
[1724775078563,0.00904201,61844.0,61843.0,2.60239052]
[1724775078784,0.0931,61855.0,61854.0,1.131697]
[1724775079003,0.0931,61855.0,61854.0,1.52464043]
[1724775079224,0.0931,61855.0,61854.0,1.52463061]
[1724775079649,0.0931,61855.0,61854.0,1.49763798]
[1724775080098,0.0931,61855.0,61854.0,1.4976404]
[1724775080533,0.0931,61855.0,61854.0,1.5246335]
[1724775080980,0.0931,61855.0,61854.0,1.4976404]
[1724775081221,0.009031,61856.0,61855.0,1.131676]
[1724775081426,0.009031,61856.0,61855.0,1.14911532]
[1724775081850,0.009031,61856.0,61855.0,1.28606284]
[1724775082082,0.009031,61856.0,61855.0,1.14911532]
[1724775082774,0.009031,61856.0,61855.0,1.16311532]
[1724775083965,0.009031,61856.0,61855.0,1.49845132]
[1724775084177,0.0004,61859.0,61858.0,0.808302]
[1724775084396,0.0004,61859.0,61858.0,2.04136145]
[1724775085921,0.0004,61859.0,61858.0,2.05536145]
[1724775086156,0.0004,61859.0,61858.0,2.04136145]
[1724775087541,0.0004,61859.0,61858.0,2.06936145]
[1724775087798,0.0004,61859.0,61858.0,2.19230897]
[1724775088005,0.0004,61859.0,61858.0,2.17830897]
[1724775088227,0.0004,61859.0,61858.0,2.20628888]
[1724775088429,0.0004,61859.0,61858.0,2.19228888]
[1724775088643,0.0004,61859.0,61858.0,2.20628888]
[1724775088845,0.0004,61859.0,61858.0,2.19228888]
[1724775089703,0.00130421,61859.0,61858.0,2.19228888]
[1724775090355,0.00130421,61859.0,61858.0,2.20628888]
[1724775090800,0.00130421,61859.0,61858.0,2.31558888]
[1724775091017,0.00130421,61859.0,61858.0,2.29816965]
[1724775091239,0.00130421,61859.0,61858.0,2.31558963]
[1724775094357,0.00130421,61859.0,61858.0,2.29816965]
[1724775094599,0.00130421,61859.0,61858.0,2.31559421]
[1724775096598,0.00130421,61859.0,61858.0,2.04632876]
[1724775097723,0.00130421,61859.0,61858.0,2.18886965]
[1724775099228,0.00130421,61859.0,61858.0,2.30796965]
[1724775099704,0.00130421,61859.0,61858.0,2.32540604]
[1724775099933,0.00130421,61859.0,61858.0,2.41850604]
[1724775100162,0.00130421,61859.0,61858.0,2.40106965]
[1724775101544,0.00130421,61859.0,61858.0,2.41320534]
[1724775101783,0.00130421,61859.0,61858.0,2.43367545]
[1724775101989,0.00130421,61859.0,61858.0,2.34057545]
[1724775102407,0.00130421,61859.0,61858.0,2.35574513]
[1724775103601,0.00130421,61859.0,61858.0,2.36788066]
[1724775105508,0.00130421,61859.0,61858.0,2.32313935]
[1724775105677,0.00130421,61859.0,61858.0,2.36788443]
[1724775107361,0.00130421,61859.0,61858.0,2.11183691]
[1724775108180,0.00130421,61859.0,61858.0,1.92617711]
[1724775109373,0.00130421,61859.0,61858.0,1.91100621]
[1724775109546,0.00130421,61859.0,61858.0,1.92618199]
[1724775111596,0.00130421,61859.0,61858.0,1.91101229]
[1724775111926,0.00130421,61859.0,61858.0,2.07097774]
[1724775112137,0.00130421,61859.0,61858.0,1.58769129]
[1724775112271,0.00130421,61859.0,61858.0,1.42772584]
[1724775112493,0.09380421,61859.0,61858.0,1.42772584]
[1724775112901,0.09380421,61859.0,61858.0,1.42773388]
[1724775115655,0.09380421,61859.0,61858.0,1.10441288]
[1724775115900,0.09380421,61859.0,61858.0,1.07709701]
[1724775116287,0.09380421,61859.0,61858.0,1.06309701]
[1724775116474,0.09380421,61859.0,61858.0,1.04565488]
[1724775116692,0.09380421,61859.0,61858.0,1.07710474]
[1724775116891,0.09380421,61859.0,61858.0,1.54680961]
[1724775117105,0.09380421,61859.0,61858.0,1.53280961]
[1724775117465,0.09380421,61859.0,61858.0,1.37242574]
[1724775118579,0.09380421,61859.0,61858.0,1.39642574]
[1724775118804,0.09380421,61859.0,61858.0,0.97310474]
[1724775119241,0.09380421,61859.0,61858.0,0.94910474]
[1724775119672,0.08380421,61859.0,61858.0,0.97510474]
[1724775120116,0.08380421,61859.0,61858.0,0.96310474]
[1724775120330,0.08380421,61859.0,61858.0,0.97310474]
[1724775120567,0.08380421,61859.0,61858.0,0.97310341]
[1724775121014,0.08380421,61859.0,61858.0,1.43240844]
[1724775121496,0.08360963,61859.0,61858.0,1.43240844]
[1724775123013,0.08360963,61859.0,61858.0,0.97310341]
[1724775123733,0.08360963,61859.0,61858.0,0.95565488]
[1724775123942,0.08360963,61859.0,61858.0,1.29642585]
[1724775124781,0.08360963,61859.0,61858.0,0.97310485]
[1724775126292,0.08451384,61859.0,61858.0,0.97310485]
[1724775126512,0.01090421,61859.0,61858.0,1.40007653]
[1724775126733,0.01090421,61859.0,61858.0,1.51147653]
[1724775126961,0.01090421,61859.0,61858.0,1.51147561]
[1724775129336,0.01090421,61859.0,61858.0,1.29642493]
[1724775129603,0.01090421,61859.0,61858.0,0.84975105]
[1724775129822,0.01090421,61859.0,61858.0,0.97310393]
[1724775130476,0.01090421,61859.0,61858.0,0.95565488]
[1724775130713,0.01090421,61859.0,61858.0,0.97310476]
[1724775131187,0.01090421,61859.0,61858.0,1.56479121]
[1724775131413,0.01090421,61859.0,61858.0,1.44143833]
[1724775131630,0.01090421,61859.0,61858.0,1.56479121]
[1724775131868,0.01090421,61859.0,61858.0,1.40482576]
[1724775134113,0.01090421,61859.0,61858.0,1.40482426]
[1724775134335,0.01090421,61859.0,61858.0,1.56478971]
[1724775134559,0.01090421,61859.0,61858.0,2.04807611]
[1724775134803,0.01090421,61859.0,61858.0,1.72475511]
[1724775135236,0.00904201,61861.0,61860.0,0.925375]
[1724775135474,0.009031,61863.0,61860.0,0.925375]
[1724775135475,0.009031,61863.0,61862.0,0.80825]
[1724775135692,0.009031,61863.0,61862.0,1.91091339]
[1724775137089,0.009031,61863.0,61862.0,2.11931339]
[1724775137514,0.009031,61863.0,61862.0,2.12831339]
[1724775138084,0.009031,61863.0,61862.0,2.13831339]
[1724775138296,0.009031,61863.0,61862.0,2.12931339]
[1724775138695,0.009031,61863.0,61862.0,2.13231339]
[1724775138904,0.04885748,61879.0,61870.0,1.78041388]
[1724775139115,0.0004,61879.0,61870.0,1.97300514]
[1724775139393,0.0004,61879.0,61870.0,2.07300514]
[1724775140326,0.0004,61879.0,61877.0,1.36512588]
[1724775140525,0.0004,61879.0,61877.0,1.54253966]
[1724775140727,0.0004,61879.0,61877.0,1.56453001]
[1724775141121,0.0004,61879.0,61877.0,1.54708168]
[1724775141327,0.0004,61879.0,61877.0,1.5645096]
[1724775141537,0.0004,61879.0,61877.0,1.5775096]
[1724775141746,0.0004,61879.0,61877.0,1.9007306]
[1724775141947,0.0004,61879.0,61877.0,1.8967306]
[1724775142144,0.0004,61879.0,61877.0,1.5875096]
[1724775142352,0.0004,61879.0,61877.0,1.9017306]
[1724775142568,0.0004,61879.0,61877.0,1.5915096]
[1724775142774,0.0004,61879.0,61877.0,1.9147306]
[1724775143002,0.0004,61879.0,61877.0,1.5915096]
[1724775143437,0.0004,61879.0,61877.0,1.9007306]
[1724775143715,0.0004,61879.0,61877.0,1.5775096]
[1724775143928,0.0004,61879.0,61877.0,1.5785096]
[1724775144135,0.0004,61879.0,61877.0,1.59147867]
[1724775144377,0.0004,61879.0,61877.0,1.61947867]
[1724775144650,0.0004,61879.0,61877.0,1.57508168]
[1724775144913,0.0004,61879.0,61877.0,1.92869172]
[1724775145136,0.0004,61879.0,61877.0,1.61946851]
[1724775145352,0.0004,61879.0,61877.0,1.60546851]
[1724775145557,0.0004,61879.0,61877.0,1.59146851]
[1724775145967,0.0004,61879.0,61877.0,1.70546851]
[1724775146608,0.0004,61879.0,61877.0,1.71946851]
[1724775147246,0.0004,61879.0,61877.0,2.00172297]
[1724775147488,0.0004,61879.0,61877.0,1.69146851]
[1724775147866,0.0004,61879.0,61877.0,2.02824991]
[1724775148103,0.0004,61879.0,61877.0,1.73199545]
[1724775148302,0.0004,61879.0,61877.0,1.79867852]
[1724775148526,0.0004,61879.0,61877.0,2.12697616]
[1724775148747,0.0004,61879.0,61877.0,2.15393241]
[1724775149578,0.0004,61879.0,61877.0,2.13993241]
[1724775149795,0.0004,61879.0,61877.0,2.12593241]
[1724775150213,0.0004,61879.0,61877.0,2.13993241]
[1724775150810,0.0004,61879.0,61877.0,2.15393241]
[1724775151015,0.01318371,61878.0,61877.0,2.15393241]
[1724775151469,0.01318371,61878.0,61877.0,2.16793241]
[1724775151896,0.01318371,61878.0,61877.0,2.15393241]
[1724775152148,0.01318371,61878.0,61877.0,2.16793241]
[1724775153517,0.01318371,61878.0,61877.0,2.13993241]
[1724775153731,0.01318371,61878.0,61877.0,2.15393241]
[1724775154203,0.01318371,61878.0,61877.0,2.13993241]
[1724775154662,0.01318371,61878.0,61877.0,2.02719952]
[1724775154903,0.01318371,61878.0,61877.0,2.04119952]
[1724775155141,0.01318371,61878.0,61877.0,2.05519952]
[1724775155374,0.01318371,61878.0,61877.0,2.04121944]
[1724775155611,0.01318371,61878.0,61877.0,2.05521944]
[1724775155840,0.01318371,61878.0,61877.0,2.05521125]
[1724775156057,0.01318371,61878.0,61877.0,2.04121125]
[1724775156321,0.01318371,61878.0,61877.0,2.02721125]
[1724775156551,0.01318371,61878.0,61877.0,2.05521125]
[1724775156776,0.01318371,61878.0,61877.0,2.04121125]
[1724775157248,0.01318371,61878.0,61877.0,2.05521125]
[1724775157493,0.01318371,61878.0,61877.0,2.04121125]
[1724775157728,0.01318371,61878.0,61877.0,2.02721125]
[1724775157977,0.01318371,61878.0,61877.0,1.60863737]
[1724775158241,0.10418371,61878.0,61877.0,1.2892182]
[1724775158483,0.10418371,61878.0,61877.0,1.39857108]
[1724775158714,0.10418371,61878.0,61877.0,1.41257108]
[1724775159227,0.10418371,61878.0,61877.0,1.39857108]
[1724775159448,0.10418371,61878.0,61877.0,1.54252579]
[1724775159672,0.10418371,61878.0,61877.0,1.55652579]
[1724775159920,0.01318371,61878.0,61877.0,1.54252579]
[1724775160174,0.01318371,61878.0,61877.0,1.43317291]
[1724775160416,0.01318371,61878.0,61877.0,1.4601473]
[1724775160894,0.01318371,61878.0,61877.0,1.4461473]
[1724775161132,0.01318371,61878.0,61877.0,1.4321473]
[1724775161367,0.01318371,61878.0,61877.0,1.4461473]
[1724775161600,0.01318371,61878.0,61877.0,1.5647473]
[1724775161849,0.01318371,61878.0,61877.0,1.53435465]
[1724775162065,0.01318371,61878.0,61877.0,1.52035465]
[1724775162332,0.02531891,61885.0,61884.0,0.64637]
[1724775162564,0.02531891,61885.0,61884.0,1.40351245]
[1724775162824,0.02531891,61885.0,61884.0,1.72669745]
[1724775163078,0.09112,61888.0,61887.0,0.807922]
[1724775163298,0.09112,61888.0,61887.0,1.131091]
[1724775163524,0.09112,61888.0,61887.0,1.29105645]
[1724775164232,0.00012,61888.0,61887.0,1.29105645]
[1724775164713,0.00012,61888.0,61887.0,1.30205645]
[1724775166322,0.00012,61888.0,61887.0,1.29105645]
[1724775166616,0.00012,61888.0,61887.0,1.62222545]
[1724775166831,0.00012,61888.0,61887.0,1.63622545]
[1724775167969,0.00012,61888.0,61887.0,1.62822545]
[1724775168178,0.00012,61888.0,61887.0,1.63922545]
[1724775168619,0.00012,61888.0,61887.0,1.64222545]
[1724775169044,0.00012,61888.0,61887.0,1.65622545]
[1724775169268,0.00012,61888.0,61887.0,1.9295909]
[1724775169481,0.00012,61888.0,61887.0,2.26577014]
[1724775169689,0.00012,61888.0,61887.0,2.23777014]
[1724775169911,0.00012,61888.0,61887.0,1.92860114]
[1724775172157,0.00012,61888.0,61887.0,1.91460114]
[1724775172667,0.00012,61888.0,61887.0,1.92860114]
[1724775173337,0.00012,61888.0,61887.0,1.91460114]
[1724775173666,0.00012,61888.0,61887.0,1.92860114]
[1724775173873,0.00012,61888.0,61887.0,1.91460114]
[1724775174329,0.00012,61888.0,61887.0,1.92860114]
[1724775174877,0.00012,61888.0,61887.0,2.02860114]
[1724775175122,0.00012,61888.0,61887.0,2.01460114]
[1724775175268,0.00102311,61888.0,61887.0,2.01460114]
[1724775175501,0.00102311,61888.0,61887.0,2.02860114]
[1724775179121,0.00102311,61888.0,61887.0,2.04070165]
[1724775179596,0.00102311,61888.0,61887.0,2.12970165]
[1724775179806,0.00102311,61888.0,61887.0,2.13373454]
[1724775181582,0.00102311,61888.0,61887.0,2.11973454]
[1724775181826,0.00102311,61888.0,61887.0,2.13373454]
[1724775182044,0.00082861,61888.0,61887.0,2.13373454]
[1724775182265,0.00082861,61888.0,61887.0,2.11973454]
[1724775182479,0.00082861,61888.0,61887.0,2.10763403]
[1724775182696,0.00082861,61888.0,61887.0,2.11973764]
[1724775183415,0.00082861,61888.0,61887.0,2.13373764]
[1724775183926,0.00082861,61888.0,61887.0,2.11973764]
[1724775184146,0.00082861,61888.0,61887.0,1.8667393]
[1724775184365,0.00082861,61888.0,61887.0,1.8807393]
[1724775186057,0.00082861,61888.0,61887.0,1.97657219]
[1724775186273,0.00082861,61888.0,61887.0,2.09575209]
[1724775186499,0.00082861,61888.0,61887.0,2.25571754]
[1724775186712,0.00082861,61888.0,61887.0,2.25571752]
[1724775189464,0.00082861,61888.0,61887.0,2.25975041]
[1724775189699,0.00082861,61888.0,61887.0,2.24361284]
[1724775189919,0.00082861,61888.0,61887.0,2.25571592]
[1724775190371,0.00082861,61888.0,61887.0,2.16391592]
[1724775191507,0.00082861,61888.0,61887.0,2.18812424]
[1724775192348,0.00082861,61888.0,61887.0,2.19215713]
[1724775193179,0.00082861,61888.0,61887.0,2.18005405]
[1724775193400,0.00082861,61888.0,61887.0,2.19215711]
[1724775193621,0.00082861,61888.0,61887.0,2.19215562]
[1724775195622,0.00082861,61888.0,61887.0,2.19215648]
[1724775195830,0.00082861,61888.0,61887.0,2.18812359]
[1724775196041,0.00082861,61888.0,61887.0,2.19215648]
[1724775196949,0.00082861,61888.0,61887.0,2.19215834]
[1724775197156,0.00082861,61888.0,61887.0,2.15584573]
[1724775197360,0.00082861,61888.0,61887.0,2.1921585]
[1724775200012,0.00082861,61888.0,61887.0,2.1929795]
[1724775200210,0.00082861,61888.0,61887.0,2.16877087]
[1724775200425,0.00082861,61888.0,61887.0,2.19297916]
[1724775206878,0.00082861,61888.0,61887.0,2.16877087]
[1724775207082,0.00082861,61888.0,61887.0,2.19300602]
[1724775207293,0.00082861,61888.0,61887.0,2.16877087]
[1724775207464,0.00082861,61888.0,61887.0,2.19300672]
[1724775210428,0.00082861,61888.0,61887.0,2.15666673]
[1724775210626,0.00082861,61888.0,61887.0,2.1930277]
[1724775213806,0.00082861,61888.0,61887.0,2.19304731]
[1724775214635,0.00082861,61888.0,61887.0,2.56461419]
[1724775214840,0.0905,61899.0,61898.0,1.2541037]
[1724775215037,0.0905,61899.0,61898.0,1.43544492]
[1724775215237,0.0905,61899.0,61898.0,1.41018527]
[1724775215512,0.0004,61899.0,61898.0,1.99326272]
[1724775215955,0.0004,61899.0,61898.0,2.01751644]
[1724775216159,0.0004,61899.0,61898.0,2.02154933]
[1724775217283,0.0004,61899.0,61898.0,2.00728846]
[1724775217486,0.0004,61899.0,61898.0,2.04452789]
[1724775217720,0.0004,61899.0,61898.0,2.00728846]
[1724775217915,0.0004,61899.0,61898.0,2.03152681]
[1724775218122,0.0004,61899.0,61898.0,2.04552681]
[1724775218338,0.0004,61899.0,61898.0,1.91828222]
[1724775218536,0.0808,61899.0,61898.0,1.72213057]
[1724775219025,0.0808,61899.0,61898.0,2.01999018]
[1724775219148,0.0004,61899.0,61898.0,2.17514257]
[1724775219348,0.0004,61899.0,61898.0,2.16114257]
[1724775219555,0.0004,61899.0,61898.0,2.13589018]
[1724775219798,0.0004,61899.0,61898.0,2.17514257]
[1724775220212,0.0004,61899.0,61898.0,2.14989018]
[1724775220416,0.0004,61899.0,61898.0,2.14989431]
[1724775221961,0.0004,61899.0,61898.0,2.5613392]
[1724775222168,0.0004,61899.0,61898.0,2.17817008]
[1724775222809,0.0004,61899.0,61898.0,2.12780336]
[1724775223015,0.0004,61899.0,61898.0,2.17816444]
[1724775223615,0.0004,61899.0,61898.0,2.16416444]
[1724775223794,0.00130421,61899.0,61898.0,2.16416287]
[1724775224194,0.00130421,61899.0,61898.0,2.15016287]
[1724775224643,0.00130421,61899.0,61898.0,2.16416287]
[1724775225052,0.00130421,61899.0,61898.0,2.15035735]
[1724775225445,0.00130421,61899.0,61898.0,2.17835735]
[1724775226540,0.00130421,61899.0,61898.0,2.19350905]
[1724775227241,0.00130421,61899.0,61898.0,2.19351062]
[1724775227428,0.00130421,61899.0,61898.0,2.16623699]
[1724775227675,0.00130421,61899.0,61898.0,2.19351828]
[1724775227893,0.00807257,61905.0,61898.0,2.19351828]
[1724775228120,0.07264789,61916.0,61906.0,0.1148]
[1724775228121,0.0822,61916.0,61906.0,0.1148]
[1724775228333,0.0822,61916.0,61915.0,0.807557]
[1724775228570,0.0822,61916.0,61915.0,1.29054545]
[1724775229110,0.1821,61916.0,61915.0,1.2537917]
[1724775229315,0.1771,61916.0,61915.0,1.37917087]
[1724775229523,0.1771,61916.0,61915.0,1.38817087]
[1724775229524,0.0772,61916.0,61915.0,1.38817087]
[1724775229856,0.0772,61916.0,61915.0,1.55613632]
[1724775230028,0.0772,61916.0,61915.0,1.14758]
[1724775230226,0.0772,61916.0,61915.0,1.2707917]
[1724775230494,0.0772,61916.0,61915.0,1.2627917]
[1724775230895,0.0772,61916.0,61915.0,1.2537917]
[1724775231119,0.0772,61916.0,61915.0,1.2647917]
[1724775231292,0.0772,61916.0,61915.0,1.39253486]
[1724775231505,0.0772,61916.0,61915.0,1.38153486]
[1724775231694,0.0772,61916.0,61915.0,1.39353486]
[1724775231898,0.0772,61916.0,61915.0,1.38153486]
[1724775232052,0.0772,61916.0,61915.0,1.39053486]
[1724775232253,0.0772,61916.0,61915.0,1.40453486]
[1724775232662,0.0772,61916.0,61915.0,1.39553486]
[1724775232865,0.0772,61916.0,61915.0,1.40653486]
[1724775233894,0.00904201,61917.0,61916.0,1.130563]
[1724775234714,0.19624201,61917.0,61916.0,1.130563]
[1724775235010,0.19624201,61917.0,61916.0,1.2537747]
[1724775235220,0.00904201,61917.0,61916.0,1.2537747]
[1724775235437,0.00904201,61917.0,61916.0,1.74675815]
[1724775235647,0.00904201,61917.0,61916.0,1.91379518]
[1724775236367,0.00904201,61917.0,61916.0,1.74975815]
[1724775236703,0.00904201,61917.0,61916.0,1.76075815]
[1724775237119,0.00904201,61917.0,61916.0,1.74775815]
[1724775237525,0.00904201,61917.0,61916.0,1.76175815]
[1724775238244,0.00904201,61917.0,61916.0,1.75075815]
[1724775238452,0.00904201,61917.0,61916.0,1.5737056]
[1724775238629,0.00904201,61917.0,61916.0,1.7890056]
[1724775238845,0.00904201,61917.0,61916.0,1.8890056]
[1724775239823,0.00904201,61917.0,61916.0,1.41652845]
[1724775240039,0.00904201,61917.0,61916.0,1.40452845]
[1724775240751,0.00904201,61917.0,61916.0,1.39052845]
[1724775241202,0.00904201,61917.0,61916.0,1.40452845]
[1724775241367,0.00904201,61917.0,61916.0,1.41752845]
[1724775241583,0.00904201,61917.0,61916.0,1.5774939]
[1724775242881,0.00904201,61917.0,61916.0,1.6876939]